fUSD/lending_fUSD_20250629
["ID","MTS","AMOUNT","RATE_DAILY","PERIOD"]
[368493940,1751190772215,-312.68872601,0.0003114,7]
[368493941,1751190772224,-294.80816015,0.0003114,7]
[368493942,1751190772234,-150.0,0.00031178,7]
[368493943,1751190772243,-150.0,0.00031183,7]
[368493944,1751190772256,-150.0,0.00031194,7]
[368493945,1751190772265,-312.68872601,0.00031206,7]
[368493946,1751190772275,-294.80816015,0.00031206,7]
[368493947,1751190772285,-500.0,0.0003121,2]
[368493948,1751190772294,-939.0,0.0003121,2]
[368493949,1751190772303,-779.0,0.0003121,2]
[368493950,1751190772313,-150.0,0.00031211,7]
[368493951,1751190772322,-150.0,0.00031231,7]
[368493952,1751190772332,-150.0,0.00031231,7]
[368493953,1751190772343,-1528.36,0.00031232,9]
[368493954,1751190772353,-600.46,0.00031232,3]
[368493955,1751190772362,-542.33,0.00031232,3]
[368493957,1751190772372,-847.37,0.00031232,3]
[368493958,1751190772381,-490.0,0.00031232,3]
[368493959,1751190772391,-490.0,0.00031232,3]
[368493961,1751190772400,-490.0,0.00031232,3]
[368493962,1751190772409,-490.0,0.00031232,3]
[368493963,1751190772420,-490.0,0.00031232,3]
[368493964,1751190772431,-948.9,0.00031232,3]
[368493965,1751190772441,-667.1,0.00031232,3]
[368493966,1751190772452,-513.09,0.00031232,3]
[368493967,1751190772464,-978.74,0.00031232,3]
[368493968,1751190772473,-642.29,0.00031232,3]
[368493969,1751190772482,-490.0,0.00031232,3]
[368493970,1751190772492,-490.0,0.00031232,3]
[368493971,1751190772501,-1186.44,0.00031232,3]
[368493972,1751190772511,-490.0,0.00031232,3]
[368493973,1751190772521,-490.0,0.00031232,3]
[368493974,1751190772530,-2554.302964,0.00031232,3]
[368493975,1751190772539,-490.0,0.00031232,3]
[368493976,1751190772548,-853.16,0.00031232,3]
[368493977,1751190772558,-2816.157543,0.00031232,3]
[368493978,1751190772568,-158.454064,0.00031232,3]
[368493979,1751190772577,-2200.380726,0.00031232,3]
[368493980,1751190772587,-392.680419,0.00031232,3]
[368493981,1751190772596,-500.85,0.00031232,3]
[368493982,1751190772605,-490.0,0.00031232,3]
[368493983,1751190772615,-887.72,0.00031232,3]
[368493984,1751190772625,-153.102854,0.00031232,3]
[368493985,1751190772635,-556.18,0.00031232,3]
[368493986,1751190772644,-656.47,0.00031232,3]
[368493987,1751190772653,-571.97,0.00031232,3]
[368493988,1751190772663,-490.0,0.00031232,3]
[368493989,1751190772672,-858.42,0.00031232,3]
[368493990,1751190772681,-490.0,0.00031232,3]
[368493991,1751190772691,-648.74,0.00031232,3]
[368493992,1751190772700,-1167.71,0.00031232,3]
[368493993,1751190772709,-490.0,0.00031232,3]
[368493994,1751190772718,-167.777922,0.00031232,3]
[368493995,1751190772727,-642.42,0.00031232,3]
[368493996,1751190772737,-523.68,0.00031232,3]
[368493997,1751190772746,-490.0,0.00031232,3]
[368493998,1751190772755,-625.75,0.00031232,3]
[368493999,1751190772764,-490.0,0.00031232,3]
[368494000,1751190772773,-490.0,0.00031232,3]
[368494001,1751190772783,-490.0,0.00031232,3]
[368494002,1751190772792,-490.0,0.00031232,3]
[368494003,1751190772801,-1529.36,0.00031232,3]
[368494004,1751190772810,-725.47,0.00031232,3]
[368494005,1751190772820,-167.777922,0.00031232,3]
[368494006,1751190772829,-490.0,0.00031232,3]
[368494007,1751190772840,-1837.93,0.00031232,3]
[368494008,1751190772850,-490.0,0.00031232,3]
[368494009,1751190772859,-961.81,0.00031232,3]
[368494010,1751190772869,-677.59,0.00031232,3]
[368494011,1751190772878,-490.0,0.00031232,3]
[368494012,1751190772888,-490.0,0.00031232,3]
[368494013,1751190772898,-490.0,0.00031232,3]
[368494014,1751190772908,-811.6,0.00031232,3]
[368494015,1751190772917,-701.76,0.00031232,3]
[368494016,1751190772926,-490.0,0.00031232,3]
[368494017,1751190772935,-801.55,0.00031232,3]
[368494018,1751190772945,-490.0,0.00031232,3]
[368494019,1751190772955,-493.56,0.00031232,3]
[368494020,1751190772964,-490.0,0.00031232,3]
[368494021,1751190772974,-590.68,0.00031232,3]
[368494022,1751190772983,-490.0,0.00031232,3]
[368494023,1751190772992,-490.0,0.00031232,3]
[368494024,1751190773002,-296.90121045,0.00031232,3]
[368494025,1751190773012,-740.41,0.00031232,3]
[368494026,1751190773021,-930.82,0.00031232,3]
[368494027,1751190773031,-1134.82,0.00031232,3]
[368494028,1751190773040,-629.08,0.00031232,3]
[368494029,1751190773050,-507.56,0.00031232,3]
[368494030,1751190773060,-508.09,0.00031232,3]
[368494031,1751190773071,-1395.58,0.00031232,3]
[368494032,1751190773080,-596.83,0.00031232,3]
[368494033,1751190773090,-516.57,0.00031232,3]
[368494034,1751190773100,-1527.96,0.00031232,3]
[368494035,1751190773110,-2015.14,0.00031232,3]
[368494036,1751190773120,-524.08936175,0.00031232,3]
[368494037,1751190773130,-615.0,0.00031232,3]
[368494038,1751190773139,-490.0,0.00031232,3]
[368494039,1751190773148,-889.47,0.00031232,3]
[368494040,1751190773159,-2302.9,0.00031232,3]
[368494041,1751190773168,-945.27,0.00031232,3]
[368494042,1751190773177,-743.01,0.00031232,3]
[368494043,1751190773187,-643.27,0.00031232,3]
[368494044,1751190773197,-1940.61,0.00031232,3]
[368494045,1751190773207,-1952.95,0.00031232,3]
[368494046,1751190773216,-1201.96,0.00031232,3]
[368494047,1751190773226,-1310.06,0.00031232,3]
[368494048,1751190773235,-369.84,0.00031232,3]
[368494049,1751190773245,-1125.22,0.00031232,3]
[368494050,1751190773254,-1224.35,0.00031232,3]
[368494051,1751190773263,-490.0,0.00031232,3]
[368494052,1751190773273,-976.06,0.00031232,3]
[368494053,1751190773283,-749.58,0.00031232,3]
[368494054,1751190773292,-1824.88,0.00031232,3]
[368494055,1751190773302,-603.75,0.00031232,3]
[368494056,1751190773312,-957.88,0.00031232,3]
[368494057,1751190773321,-490.0,0.00031232,3]
[368494058,1751190773331,-490.0,0.00031232,3]
[368494059,1751190773340,-490.0,0.00031232,3]
[368494060,1751190773350,-538.77,0.00031232,3]
[368494061,1751190773359,-776.78,0.00031232,3]
[368494062,1751190773368,-960.82,0.00031232,3]
[368494063,1751190773377,-894.84,0.00031232,3]
[368494064,1751190773387,-635.09710835,0.00031232,3]
[368494065,1751190773397,-490.0,0.00031232,3]
[368494066,1751190773406,-1904.77,0.00031232,3]
[368494067,1751190773415,-490.0,0.00031232,3]
[368494068,1751190773425,-1462.39,0.00031232,3]
[368494069,1751190773436,-2300.89,0.00031232,3]
[368494070,1751190773446,-490.0,0.00031232,3]
[368494071,1751190773457,-650.78,0.00031232,3]
[368494072,1751190773466,-2228.41,0.00031232,3]
[368494073,1751190773475,-694.52,0.00031232,3]
[368494074,1751190773484,-490.0,0.00031232,3]
[368494075,1751190773494,-490.0,0.00031232,3]
[368494076,1751190773503,-1649.19,0.00031232,3]
[368494077,1751190773513,-2026.94,0.00031232,3]
[368494078,1751190773522,-490.0,0.00031232,3]
[368494079,1751190773534,-843.7,0.00031232,3]
[368494080,1751190773544,-490.0,0.00031232,3]
[368494081,1751190773553,-490.0,0.00031232,3]
[368494082,1751190773562,-490.0,0.00031232,3]
[368494083,1751190773572,-490.0,0.00031232,3]
[368494084,1751190773582,-571.61,0.00031232,3]
[368494085,1751190773591,-1556.08,0.00031232,3]
[368494086,1751190773602,-896.97,0.00031232,3]
[368494087,1751190773611,-490.0,0.00031232,3]
[368494088,1751190773620,-594.67,0.00031232,3]
[368494089,1751190773630,-1147.84,0.00031232,3]
[368494090,1751190773639,-1027.62,0.00031232,3]
[368494091,1751190773648,-707.16,0.00031232,3]
[368494092,1751190773657,-880.72,0.00031232,3]
[368494093,1751190773666,-490.0,0.00031232,3]
[368494094,1751190773675,-792.35,0.00031232,3]
[368494095,1751190773685,-490.0,0.00031232,3]
[368494096,1751190773695,-780.47,0.00031232,3]
[368494097,1751190773705,-560.33,0.00031232,3]
[368494098,1751190773714,-944.59,0.00031232,3]
[368494099,1751190773724,-1653.81,0.00031232,3]
[368494100,1751190773734,-525.19,0.00031232,3]
[368494101,1751190773744,-1620.77,0.00031232,3]
[368494102,1751190773755,-1900.77,0.00031232,3]
[368494103,1751190773765,-490.0,0.00031232,3]
[368494104,1751190773775,-521.24,0.00031232,3]
[368494105,1751190773786,-1487.61,0.00031232,3]
[368494106,1751190773796,-1556.78,0.00031232,3]
[368494107,1751190773806,-1633.03,0.00031232,3]
[368494108,1751190773816,-1046.71,0.00031232,3]
[368494109,1751190773827,-506.3,0.00031232,3]
[368494110,1751190773836,-514.5,0.00031232,3]
[368494111,1751190773846,-490.0,0.00031232,3]
[368494112,1751190773856,-1936.24,0.00031232,3]
[368494113,1751190773866,-2262.43,0.00031232,3]
[368494114,1751190773875,-665.95,0.00031232,3]
[368494115,1751190773884,-2474.6,0.00031232,3]
[368494116,1751190773893,-1268.88,0.00031232,3]
[368494117,1751190773902,-689.16,0.00031232,3]
[368494118,1751190773912,-1400.07,0.00031232,3]
[368494119,1751190773921,-858.86,0.00031232,3]
[368494120,1751190773930,-730.59,0.00031232,3]
[368494121,1751190773940,-1700.28,0.00031232,3]
[368494122,1751190773951,-666.33,0.00031232,3]
[368494123,1751190773960,-818.45,0.00031232,3]
[368494124,1751190773970,-1024.15,0.00031232,3]
[368494125,1751190773980,-709.17,0.00031232,3]
[368494126,1751190773989,-1027.52,0.00031232,3]
[368494127,1751190773998,-2038.87,0.00031232,3]
[368494128,1751190774008,-490.0,0.00031232,3]
[368494129,1751190774018,-534.02,0.00031232,3]
[368494130,1751190774027,-2394.84,0.00031232,3]
[368494131,1751190774038,-490.0,0.00031232,3]
[368494132,1751190774048,-1561.51,0.00031232,3]
[368494133,1751190774057,-1167.05,0.00031232,3]
[368494134,1751190774067,-899.19,0.00031232,3]
[368494135,1751190774077,-935.31,0.00031232,3]
[368494136,1751190774086,-771.06,0.00031232,3]
[368494137,1751190774095,-610.33,0.00031232,3]
[368494138,1751190774104,-490.0,0.00031232,3]
[368494139,1751190774114,-1503.84,0.00031232,3]
[368494140,1751190774124,-1626.28,0.00031232,3]
[368494141,1751190774134,-566.4,0.00031232,3]
[368494142,1751190774144,-715.86,0.00031232,3]
[368494143,1751190774154,-934.93,0.00031232,3]
[368494144,1751190774164,-516.29,0.00031232,3]
[368494145,1751190774173,-589.35,0.00031232,3]
[368494146,1751190774183,-2211.02,0.00031232,3]
[368494147,1751190774294,-1313.26,0.00031232,3]
[368494148,1751190774307,-878.98,0.00031232,3]
[368494149,1751190774316,-2018.3,0.00031232,3]
[368494150,1751190774326,-1272.1,0.00031232,3]
[368494151,1751190774335,-1320.46,0.00031232,3]
[368494152,1751190774344,-2254.95,0.00031232,3]
[368494153,1751190774355,-490.0,0.00031232,3]
[368494154,1751190774364,-490.0,0.00031232,3]
[368494155,1751190774373,-801.49,0.00031232,3]
[368494156,1751190774382,-793.92,0.00031232,3]
[368494157,1751190774391,-1409.04,0.00031232,3]
[368494158,1751190774401,-566.98,0.00031232,3]
[368494159,1751190774410,-855.39,0.00031232,3]
[368494160,1751190774420,-520.23,0.00031232,3]
[368494161,1751190774429,-503.31,0.00031232,3]
[368494162,1751190774439,-1383.19,0.00031232,3]
[368494163,1751190774448,-490.0,0.00031232,3]
[368494164,1751190774459,-907.17,0.00031232,3]
[368494165,1751190774469,-490.0,0.00031232,3]
[368494166,1751190774478,-1733.55,0.00031232,3]
[368494167,1751190774487,-1411.93,0.00031232,3]
[368494168,1751190774497,-490.0,0.00031232,3]
[368494169,1751190774506,-1161.29,0.00031232,3]
[368494170,1751190774516,-490.0,0.00031232,3]
[368494171,1751190774525,-648.19,0.00031232,3]
[368494172,1751190774534,-584.75665608,0.00031232,3]
[368494173,1751190774545,-490.0,0.00031232,3]
[368494174,1751190774554,-664.2,0.00031232,3]
[368494175,1751190774563,-492.59,0.00031232,3]
[368494176,1751190774573,-1411.98,0.00031232,3]
[368494177,1751190774582,-490.0,0.00031232,3]
[368494178,1751190774591,-1476.05,0.00031232,3]
[368494179,1751190774600,-490.0,0.00031232,3]
[368494180,1751190774610,-2483.68,0.00031232,3]
[368494181,1751190774619,-622.78,0.00031232,3]
[368494182,1751190774628,-2320.44,0.00031232,3]
[368494183,1751190774638,-1539.15,0.00031232,3]
[368494184,1751190774649,-894.95,0.00031232,3]
[368494185,1751190774660,-701.41,0.00031232,3]
[368494186,1751190774670,-526.1,0.00031232,3]
[368494187,1751190774679,-1005.08,0.00031232,3]
[368494188,1751190774689,-245.71602503,0.00031232,3]
[368494189,1751190774698,-1199.97,0.00031232,3]
[368494190,1751190774707,-1032.78,0.00031232,3]
[368494191,1751190774717,-549.61,0.00031232,3]
[368494192,1751190774726,-1283.76,0.00031232,3]
[368494193,1751190774735,-490.0,0.00031232,3]
[368494194,1751190774745,-490.0,0.00031232,3]
[368494195,1751190774755,-901.15,0.00031232,3]
[368494196,1751190774766,-545.6,0.00031232,3]
[368494197,1751190774776,-841.45,0.00031232,3]
[368494198,1751190774785,-525.0,0.00031232,3]
[368494199,1751190774795,-908.9,0.00031232,3]
[368494200,1751190774805,-1956.7,0.00031232,3]
[368494201,1751190774814,-1559.17,0.00031232,3]
[368494202,1751190774823,-490.0,0.00031232,3]
[368494203,1751190774833,-772.36,0.00031232,3]
[368494204,1751190774842,-1731.31,0.00031232,3]
[368494205,1751190774851,-490.0,0.00031232,3]
[368494206,1751190774860,-1241.41,0.00031232,3]
[368494207,1751190774869,-490.0,0.00031232,3]
[368494208,1751190774879,-2257.75,0.00031232,3]
[368494209,1751190774889,-1736.54,0.00031232,3]
[368494210,1751190774898,-2325.03,0.00031232,3]
[368494211,1751190774907,-613.43,0.00031232,3]
[368494212,1751190774917,-1117.78,0.00031232,3]
[368494213,1751190774927,-896.69,0.00031232,3]
[368494214,1751190774936,-998.0,0.00031232,3]
[368494215,1751190774946,-1022.6,0.00031232,3]
[368494216,1751190774955,-1382.19,0.00031232,3]
[368494217,1751190774965,-252.48260895,0.00031232,3]
[368494218,1751190774975,-1087.69,0.00031232,3]
[368494219,1751190774984,-937.32,0.00031232,3]
[368494220,1751190774994,-490.0,0.00031232,3]
[368494221,1751190775003,-428.04664428,0.00031232,3]
[368494222,1751190775013,-2003.29,0.00031232,3]
[368494223,1751190775023,-490.0,0.00031232,3]
[368494224,1751190775032,-1073.82,0.00031232,3]
[368494225,1751190775042,-1428.66,0.00031232,3]
[368494226,1751190775052,-906.56,0.00031232,3]
[368494227,1751190775062,-490.0,0.00031232,3]
[368494228,1751190775072,-751.94,0.00031232,3]
[368494229,1751190775082,-1284.2,0.00031232,3]
[368494230,1751190775093,-995.73,0.00031232,3]
[368494231,1751190775103,-730.89,0.00031232,3]
[368494232,1751190775113,-490.0,0.00031232,3]
[368494233,1751190775122,-490.0,0.00031232,3]
[368494234,1751190775132,-490.0,0.00031232,3]
[368494235,1751190775142,-490.0,0.00031232,3]
[368494236,1751190775151,-3819.49,0.00031232,3]
[368494237,1751190775161,-614.58,0.00031232,3]
[368494238,1751190775171,-2099.43,0.00031232,3]
[368494239,1751190775180,-591.09,0.00031232,3]
[368494240,1751190775190,-490.0,0.00031232,3]
[368494241,1751190775200,-1763.09,0.00031232,3]
[368494242,1751190775210,-930.34,0.00031232,3]
[368494243,1751190775219,-1553.22,0.00031232,3]
[368494244,1751190775229,-1288.37,0.00031232,3]
[368494245,1751190775239,-490.0,0.00031232,3]
[368494246,1751190775249,-935.65,0.00031232,3]
[368494247,1751190775259,-490.0,0.00031232,3]
[368494248,1751190775268,-587.32,0.00031232,3]
[368494249,1751190775278,-854.31,0.00031232,3]
[368494250,1751190775287,-490.0,0.00031232,3]
[368494251,1751190775296,-4450.47,0.00031232,3]
[368494252,1751190775305,-490.0,0.00031232,3]
[368494253,1751190775315,-528.19,0.00031232,3]
[368494254,1751190775324,-959.78,0.00031232,3]
[368494255,1751190775334,-490.0,0.00031232,3]
[368494256,1751190775343,-766.16,0.00031232,3]
[368494257,1751190775353,-1454.99,0.00031232,3]
[368494258,1751190775362,-490.0,0.00031232,3]
[368494259,1751190775370,-1177.8,0.00031232,3]
[368494260,1751190775379,-1065.99,0.00031232,3]
[368494261,1751190775389,-440.35818644,0.00031232,3]
[368494262,1751190775398,-921.89,0.00031232,3]
[368494263,1751190775408,-1049.98,0.00031232,3]
[368494264,1751190775417,-490.0,0.00031232,3]
[368494265,1751190775427,-603.29,0.00031232,3]
[368494266,1751190775436,-490.0,0.00031232,3]
[368494267,1751190775449,-1101.22,0.00031232,3]
[368494268,1751190775458,-555.36,0.00031232,3]
[368494269,1751190775468,-490.0,0.00031232,3]
[368494270,1751190775478,-1690.83,0.00031232,3]
[368494271,1751190775487,-494.25,0.00031232,3]
[368494272,1751190775496,-608.46,0.00031232,3]
[368494273,1751190775505,-916.39,0.00031232,3]
[368494274,1751190775515,-573.71,0.00031232,3]
[368494275,1751190775525,-1033.94,0.00031232,3]
[368494276,1751190775534,-1394.52,0.00031232,3]
[368494277,1751190775544,-841.15,0.00031232,3]
[368494278,1751190775553,-698.3,0.00031232,3]
[368494279,1751190775563,-18048.03,0.00031232,3]
[368494280,1751190775572,-814.68,0.00031232,3]
[368494281,1751190775581,-817.07,0.00031232,3]
[368494282,1751190775591,-994.63,0.00031232,3]
[368494283,1751190775601,-860.32,0.00031232,3]
[368494284,1751190775610,-490.0,0.00031232,3]
[368494285,1751190775619,-1083.78,0.00031232,3]
[368494286,1751190775629,-895.73,0.00031232,3]
[368494287,1751190775638,-1619.71,0.00031232,3]
[368494288,1751190775648,-2039.79,0.00031232,3]
[368494289,1751190775657,-490.0,0.00031232,3]
[368494290,1751190775667,-490.0,0.00031232,3]
[368494291,1751190775676,-627.15,0.00031232,3]
[368494292,1751190775686,-1338.17,0.00031232,3]
[368494293,1751190775695,-522.56,0.00031232,3]
[368494294,1751190775703,-5045.19,0.00031232,3]
[368494295,1751190775712,-732.19,0.00031232,3]
[368494296,1751190775722,-234.41226081,0.00031232,3]
[368494297,1751190775730,-490.0,0.00031232,3]
[368494298,1751190775739,-2735.95,0.00031232,3]
[368494299,1751190775748,-1159.62,0.00031232,3]
[368494300,1751190775757,-557.27,0.00031232,3]
[368494301,1751190775767,-337.80784955,0.00031232,3]
[368494302,1751190775777,-1735.18,0.00031232,3]
[368494303,1751190775787,-2798.62,0.00031232,3]
[368494304,1751190775797,-549.94689227,0.00031232,3]
[368494305,1751190775806,-795.99,0.00031232,3]
[368494306,1751190775817,-490.0,0.00031232,3]
[368494307,1751190775826,-2632.4,0.00031232,3]
[368494308,1751190775835,-2676.96,0.00031232,3]
[368494309,1751190775844,-890.5,0.00031232,3]
[368494310,1751190775853,-815.43,0.00031232,3]
[368494311,1751190775861,-490.0,0.00031232,3]
[368494312,1751190775871,-2287.33,0.00031232,3]
[368494313,1751190775880,-7199.68,0.00031232,3]
[368494314,1751190775890,-1083.86,0.00031232,3]
[368494315,1751190775899,-1198.65,0.00031232,3]
[368494316,1751190775908,-564.45,0.00031232,3]
[368494317,1751190775918,-490.0,0.00031232,3]
[368494318,1751190775927,-4926.93,0.00031232,3]
[368494319,1751190775936,-2111.85,0.00031232,3]
[368494320,1751190775945,-2504.77,0.00031232,3]
[368494321,1751190775955,-670.5,0.00031232,3]
[368494322,1751190775964,-9168.68,0.00031232,3]
[368494323,1751190775973,-1466.04,0.00031232,3]
[368494324,1751190775983,-148479.19,0.00031232,3]
[368494325,1751190775992,-995.99,0.00031232,3]
[368494326,1751190776002,-884.61,0.00031232,3]
[368494327,1751190776011,-1110.23,0.00031232,3]
[368494328,1751190776021,-3927.92,0.00031232,3]
[368494329,1751190776030,-1262.58,0.00031232,3]
[368494330,1751190776039,-490.0,0.00031232,3]
[368494331,1751190776048,-1550.57,0.00031232,3]
[368494332,1751190776057,-490.0,0.00031232,3]
[368494333,1751190776065,-799.02,0.00031232,3]
[368494334,1751190776074,-4423.72,0.00031232,3]
[368494335,1751190776083,-1420.75,0.00031232,3]
[368494336,1751190776093,-490.0,0.00031232,3]
[368494337,1751190776102,-2359.81,0.00031232,3]
[368494338,1751190776113,-612.29,0.00031232,3]
[368494339,1751190776122,-2220.09,0.00031232,3]
[368494340,1751190776132,-490.0,0.00031232,3]
[368494341,1751190776141,-1116.8,0.00031232,3]
[368494342,1751190776150,-490.0,0.00031232,3]
[368494343,1751190776159,-1906.36,0.00031232,3]
[368494344,1751190776169,-850.38,0.00031232,3]
[368494345,1751190776179,-2198.76,0.00031232,3]
[368494346,1751190776188,-1730.15,0.00031232,3]
[368494347,1751190776198,-1635.41,0.00031232,3]
[368494348,1751190776207,-1477.82,0.00031232,3]
[368494349,1751190776216,-495.37,0.00031232,3]
[368494350,1751190776226,-3000.74,0.00031232,3]
[368494351,1751190776235,-924.29,0.00031232,3]
[368494352,1751190776244,-1537.71,0.00031232,3]
[368494353,1751190776254,-818.08,0.00031232,3]
[368494354,1751190776263,-590.95,0.00031232,3]
[368494355,1751190776273,-1565.54,0.00031232,3]
[368494356,1751190776282,-1894.35,0.00031232,3]
[368494357,1751190776291,-707.33,0.00031232,3]
[368494358,1751190776300,-854.62,0.00031232,3]
[368494359,1751190776310,-490.0,0.00031232,3]
[368494360,1751190776319,-1990.15,0.00031232,3]
[368494361,1751190776328,-2120.63,0.00031232,3]
[368494362,1751190776337,-490.0,0.00031232,3]
[368494363,1751190776347,-501.24,0.00031232,3]
[368494364,1751190776356,-1303.39,0.00031232,3]
[368494365,1751190776367,-490.0,0.00031232,3]
[368494366,1751190776376,-412.76472942,0.00031232,3]
[368494367,1751190776385,-2057.83,0.00031232,3]
[368494368,1751190776394,-1066.81,0.00031232,3]
[368494369,1751190776402,-1078.53,0.00031232,3]
[368494370,1751190776412,-2549.31,0.00031232,3]
[368494371,1751190776421,-829.05,0.00031232,3]
[368494372,1751190776431,-1514.01,0.00031232,3]
[368494373,1751190776441,-709.69,0.00031232,3]
[368494374,1751190776450,-490.0,0.00031232,3]
[368494375,1751190776461,-1413.24,0.00031232,3]
[368494376,1751190776472,-499.7,0.00031232,3]
[368494377,1751190776483,-490.0,0.00031232,3]
[368494378,1751190776492,-7138.85,0.00031232,3]
[368494379,1751190776502,-1126.76,0.00031232,3]
[368494380,1751190776511,-1903.95,0.00031232,3]
[368494381,1751190776522,-490.0,0.00031232,3]
[368494382,1751190776531,-1687.9,0.00031232,3]
[368494383,1751190776540,-605.34,0.00031232,3]
[368494384,1751190776551,-624.57,0.00031232,3]
[368494385,1751190776560,-1199.32,0.00031232,3]
[368494386,1751190776571,-1080.18,0.00031232,3]
[368494387,1751190776581,-490.0,0.00031232,3]
[368494388,1751190776590,-1902.03,0.00031232,3]
[368494389,1751190776599,-985.04,0.00031232,3]
[368494390,1751190776608,-685.5,0.00031232,3]
[368494391,1751190776618,-809.87,0.00031232,3]
[368494392,1751190776627,-2277.33,0.00031232,3]
[368494393,1751190776636,-3579.22,0.00031232,3]
[368494394,1751190776646,-490.0,0.00031232,3]
[368494395,1751190776655,-1202.94,0.00031232,3]
[368494396,1751190776665,-1406.03,0.00031232,3]
[368494397,1751190776674,-1369.16,0.00031232,3]
[368494398,1751190776684,-2322.41,0.00031232,3]
[368494399,1751190776694,-11425.24,0.00031232,3]
[368494400,1751190776702,-936.2,0.00031232,3]
[368494401,1751190776712,-892.36,0.00031232,3]
[368494402,1751190776721,-7389.77,0.00031232,3]
[368494403,1751190776730,-2363.6,0.00031232,3]
[368494404,1751190776739,-1344.12,0.00031232,3]
[368494405,1751190776748,-490.0,0.00031232,3]
[368494406,1751190776758,-490.0,0.00031232,3]
[368494407,1751190776767,-1010.37,0.00031232,3]
[368494408,1751190776776,-3943.02,0.00031232,3]
[368494409,1751190776785,-719.55,0.00031232,3]
[368494410,1751190776794,-962.36,0.00031232,3]
[368494411,1751190776803,-2127.37,0.00031232,3]
[368494412,1751190776812,-3378.38,0.00031232,3]
[368494413,1751190776821,-1167.04,0.00031232,3]
[368494414,1751190776830,-2325.84,0.00031232,3]
[368494415,1751190776838,-1319.73,0.00031232,3]
[368494416,1751190776847,-509.95,0.00031232,3]
[368494417,1751190776858,-613.68,0.00031232,3]
[368494418,1751190776866,-518.95948052,0.00031232,3]
[368494419,1751190776875,-2715.66,0.00031232,3]
[368494420,1751190776885,-1043.95,0.00031232,3]
[368494421,1751190776896,-1294.86,0.00031232,3]
[368494422,1751190776905,-1355.41,0.00031232,3]
[368494423,1751190776914,-2207.5,0.00031232,3]
[368494424,1751190776923,-545.36,0.00031232,3]
[368494425,1751190776932,-1588.45,0.00031232,3]
[368494426,1751190776942,-4741.41,0.00031232,3]
[368494427,1751190776951,-490.0,0.00031232,3]
[368494428,1751190776960,-490.0,0.00031232,3]
[368494429,1751190776970,-826.61,0.00031232,3]
[368494430,1751190776979,-3228.0,0.00031232,3]
[368494431,1751190776988,-490.0,0.00031232,3]
[368494432,1751190776997,-886.06,0.00031232,3]
[368494433,1751190777006,-1424.96,0.00031232,3]
[368494434,1751190777015,-9205.97,0.00031232,3]
[368494435,1751190777025,-1170.72,0.00031232,3]
[368494436,1751190777034,-490.0,0.00031232,3]
[368494437,1751190777044,-2306.21,0.00031232,3]
[368494438,1751190777053,-3412.3,0.00031232,3]
[368494439,1751190777062,-728.26,0.00031232,3]
[368494440,1751190777072,-1625.19,0.00031232,3]
[368494441,1751190777081,-490.0,0.00031232,3]